bitfinex/quotes_ETHUSD_20260117
["timestamp","ask_amount","ask_price","bid_price","bid_amount"]
[1768646695376,0.001,3294.5,3294.0,1.91567016]
[1768646695706,0.001,3294.5,3294.1,4.9514007]
[1768646698878,0.001,3294.2,3294.1,4.9514007]
[1768646699080,0.001,3294.5,3294.1,5.84973426]
[1768646701606,0.001,3294.5,3294.1,5.81937696]
[1768646710227,0.001,3294.2,3294.1,5.81937696]
[1768646710431,0.001,3294.5,3294.1,5.81937696]
[1768646714196,1.83874128,3294.5,3294.1,3.9037068]
[1768646714397,1.83774128,3294.3,3293.3,0.002]
[1768646714632,1.83774128,3294.3,3293.0,0.002]
[1768646714633,1.83774128,3294.1,3293.1,3.03663122]
[1768646714935,1.83774128,3293.9,3293.1,3.03663122]
[1768646715137,1.83774128,3293.9,3293.0,3.0387446]
[1768646715336,1.83774128,3293.8,3293.0,3.0387446]
[1768646715540,1.83774128,3293.8,3293.0,6.92471423]
[1768646716038,1.83774128,3293.8,3293.0,8.84038439]
[1768646717340,1.83774128,3293.7,3293.0,5.80363979]
[1768646720012,1.83774128,3293.7,3293.0,8.84038439]
[1768646720621,1.83774128,3293.7,3293.0,5.80363979]
[1768646721312,1.83774128,3293.7,3293.1,0.88404567]
[1768646721838,1.83774128,3293.7,3293.3,0.002]
[1768646723143,4.44762632,3294.0,3293.3,1.83190766]
[1768646723444,4.44762632,3294.0,3293.5,1.82990766]
[1768646723633,6.28370063,3294.0,3293.5,1.82990766]
[1768646724148,0.501,3294.0,3293.5,1.82990766]
[1768646724511,0.501,3294.0,3293.5,1.86027049]
[1768646725153,4.87180765,3294.1,3293.5,1.82990766]
[1768646725539,1.83607431,3294.0,3293.5,1.82990766]
[1768646726217,4.87193203,3294.0,3293.5,1.82990766]
[1768646728517,3.03576027,3294.1,3293.5,1.82990766]
[1768646728928,4.87183458,3294.1,3293.5,1.82990766]
[1768646733158,4.87183458,3294.1,3293.6,0.0303619]
[1768646733327,1.83607431,3294.1,3293.6,0.0303619]
[1768646733727,1.83607431,3294.1,3293.6,1.9539994]
[1768646733928,0.001,3293.8,3293.6,1.9539994]
[1768646734128,0.001,3293.8,3293.6,2.45302617]
[1768646735364,0.001,3293.8,3293.6,1.9539994]
[1768646744259,0.001,3293.8,3293.6,0.0303619]
[1768646744566,0.001,3293.8,3293.5,0.03036283]
[1768646745256,0.001,3293.8,3293.5,4.990268]
[1768646745436,0.001,3293.8,3293.6,1.9236375]
[1768646746770,0.001,3293.8,3293.7,0.03036099]
[1768646747065,1.86328222,3294.1,3293.7,0.03036099]
[1768646747233,1.86328222,3294.1,3293.6,2.4226643]
[1768646747434,1.86328222,3294.0,3293.6,0.4990268]
[1768646747636,1.86328222,3294.0,3293.4,1.9236375]
[1768646747841,1.86328222,3294.0,3293.4,4.96000354]
[1768646748037,3.03669975,3294.2,3293.6,1.9236375]
[1768646748344,1.86428222,3294.2,3293.6,1.9236375]
[1768646748554,1.86428222,3294.2,3293.6,4.95975971]
[1768646748775,1.86428222,3294.2,3293.7,0.49597597]
[1768646748956,0.001,3294.2,3293.8,1.9236375]
[1768646749150,0.001,3294.2,3293.9,3.03591487]
[1768646749360,0.001,3294.2,3293.9,1.9236375]
[1768646750461,0.001,3294.2,3293.7,2.41961347]
[1768646750647,1.86428222,3294.2,3293.7,2.41961347]
[1768646751353,1.86428222,3294.2,3293.8,0.54557715]
[1768646753278,0.001,3294.2,3293.8,5.47810988]
[1768646753946,0.001,3294.2,3293.9,1.89653558]
[1768646754339,0.501,3294.4,3293.9,1.89653558]
[1768646754568,0.501,3294.4,3294.0,2.79804727]
[1768646755346,0.001,3294.5,3294.0,5.8338245]
[1768646755546,0.001,3294.5,3294.0,2.79804727]
[1768646755741,1.84429179,3294.5,3294.0,2.79804727]
[1768646756980,0.001,3294.2,3294.0,2.79804727]
[1768646757285,0.001,3294.2,3294.1,0.58339312]
[1768646762510,1.84429179,3294.2,3294.1,0.58339312]
[1768646762783,1.84429179,3294.2,3293.8,1.04657715]
[1768646762967,1.84429179,3294.2,3293.8,0.54557715]
[1768646768415,1.84429179,3294.2,3293.6,3.0361671]
[1768646768560,1.84329179,3294.1,3293.6,3.0361671]
[1768646768761,1.84329179,3294.1,3293.5,3.53724966]
[1768646768959,1.84329179,3294.1,3293.6,3.03617652]
[1768646769160,3.03664158,3294.2,3293.4,3.53737312]
[1768646769161,0.001,3293.9,3293.4,3.53737312]
[1768646769383,1.84429179,3293.9,3293.5,3.57986962]
[1768646770287,1.84429179,3293.9,3293.5,0.54359087]
[1768646771692,1.84429179,3293.9,3293.5,3.57984153]
[1768646778007,0.001,3293.9,3293.6,1.89653558]
[1768646778372,1.84429179,3294.2,3293.7,1.89653558]
[1768646778676,1.84429179,3294.2,3293.7,2.74780165]
[1768646779508,1.84429179,3294.2,3293.7,5.78385775]
[1768646780713,1.84429179,3294.2,3293.8,0.002]
[1768646781693,0.001,3294.2,3293.8,2.05939863]
[1768646782502,1.92635596,3294.2,3293.8,2.05939863]
[1768646782698,1.92635596,3294.2,3293.8,2.65407071]
[1768646783005,0.001,3294.2,3293.8,5.69005511]
[1768646783811,0.001,3294.2,3293.9,2.05739863]
[1768646786831,0.001,3294.2,3293.8,0.59667208]
[1768646787022,0.001,3294.2,3293.8,2.65407071]
[1768646789118,0.001,3294.2,3293.9,2.05739863]
[1768646789318,0.001,3294.2,3293.9,2.76163139]
[1768646794234,2.02073455,3294.2,3293.8,3.63266286]
[1768646794436,2.02073455,3294.2,3293.8,0.002]
[1768646804938,0.001,3293.9,3293.8,0.002]
[1768646831579,1.96124375,3293.9,3293.8,0.002]
[1768646832573,0.001,3293.9,3293.8,0.002]
[1768646832771,0.001,3294.2,3293.8,2.1084216]
[1768646837463,0.001,3294.2,3293.8,2.62287046]
[1768646839161,0.001,3293.9,3293.8,2.62287046]
[1768646839363,0.001,3294.2,3293.9,2.1064216]
[1768646840215,0.001,3294.2,3293.8,0.51644886]
[1768646840510,0.001,3294.2,3293.8,0.002]
[1768646840867,0.001,3294.2,3293.8,2.1084216]
[1768646848281,0.001,3294.2,3293.9,2.18175507]
[1768646865728,2.23639889,3294.1,3293.8,0.002]
[1768646868136,0.001,3294.2,3293.8,2.06424194]
[1768646868735,0.001,3294.2,3293.8,2.57428384]
[1768646871741,0.001,3294.2,3293.9,2.26179064]
[1768646872430,0.001,3294.2,3294.0,2.26179064]
[1768646872936,0.001,3294.5,3294.0,2.26179064]
[1768646874635,0.001,3294.5,3294.2,2.26179064]
[1768646881235,0.001,3294.5,3294.3,0.22637906]
[1768646882745,0.001,3294.5,3294.2,2.26179064]
[1768646883642,0.001,3294.5,3294.1,0.002]
[1768646884648,0.001,3294.5,3294.1,2.26379064]
[1768646886252,0.001,3294.2,3294.1,2.26379064]
[1768646891559,2.20873144,3294.2,3294.1,0.002]
[1768646891759,5.24436983,3294.2,3294.1,0.002]
[1768646892362,2.20873144,3294.2,3294.1,0.002]
[1768646894757,0.001,3294.2,3294.1,0.002]
[1768646895533,0.001,3294.2,3294.1,2.26379064]
[1768646896852,0.001,3294.2,3294.1,2.4901697]
[1768646898074,3.03639357,3294.5,3294.2,2.26179064]
[1768646908979,0.001,3294.5,3294.2,2.26179064]
[1768646912382,2.18397262,3294.5,3294.1,0.002]
[1768646914085,5.21842672,3294.4,3294.1,0.002]
[1768646914383,2.18297262,3294.3,3294.1,0.002]
[1768646914956,3.0354541,3294.4,3294.1,0.002]
[1768646917384,3.0354541,3294.4,3294.1,2.31969935]
[1768646917963,3.03638698,3294.5,3294.1,2.31969935]
[1768646918287,0.001,3294.5,3294.1,2.55166929]
[1768646921305,0.001,3294.5,3294.2,2.31769935]
[1768646930021,2.18397262,3294.5,3294.1,0.23396994]
[1768646930320,2.18397262,3294.5,3294.1,0.002]
[1768646930813,2.18297262,3294.3,3294.1,0.002]
[1768646932398,5.16039893,3294.5,3294.1,0.28406994]
[1768646932597,0.001,3294.2,3294.1,0.28406994]
[1768646951445,2.12500389,3294.2,3293.8,0.002]
[1768646951748,2.12500389,3294.2,3293.8,0.503]
[1768646953649,2.12500389,3294.2,3293.8,0.002]
[1768646955435,2.12500389,3294.2,3294.1,0.002]
[1768646965374,0.001,3294.2,3294.1,0.002]
[1768646965579,0.001,3294.2,3294.1,2.3538146]
[1768646967451,0.001,3294.5,3294.2,2.3518146]
[1768646987907,0.001,3294.5,3294.1,0.002]
[1768646988072,0.001,3294.5,3294.1,2.35946278]
[1768646989712,0.001,3294.2,3294.1,2.35946278]
[1768646990017,0.001,3294.2,3294.1,2.89899523]
[1768646998414,0.001,3294.2,3294.1,2.35946278]
[1768646999094,0.001,3294.2,3294.1,0.002]
[1768647005833,2.21086865,3294.2,3294.1,0.002]
[1768647006251,0.001,3294.2,3294.1,0.002]
[1768647006447,0.001,3294.2,3294.1,2.20252715]
[1768647006927,0.001,3294.2,3294.1,0.002]
[1768647090484,0.001,3294.2,3294.1,2.2876414]
[1768647091186,0.001,3294.2,3294.1,0.002]
[1768647110689,0.001,3294.2,3294.1,2.16668276]
[1768647114129,0.001,3294.2,3294.1,0.002]
[1768647123033,2.38371315,3294.1,3293.5,0.002]
[1768647123543,2.38371315,3294.1,3293.5,3.03826339]
[1768647124305,3.29425955,3294.1,3293.6,2.24632168]
[1768647125742,0.9105464,3294.1,3293.7,2.24632168]
[1768647127833,0.9105464,3294.1,3293.8,0.002]
[1768647128410,0.9105464,3294.1,3293.3,2.74932168]
[1768647128411,2.38371315,3294.0,3293.3,2.74932168]
[1768647129046,2.38371315,3294.0,3293.4,2.24632168]
[1768647129342,1.97584387,3293.9,3293.4,2.24632168]
[1768647129745,4.10111604,3293.9,3293.4,2.24632168]
[1768647129902,0.91064314,3293.8,3293.4,2.24632168]
[1768647135542,1.96039035,3293.8,3293.3,0.503]
[1768647135748,1.04974721,3293.7,3293.3,0.503]
[1768647136248,0.91064314,3293.6,3293.3,2.74932168]
[1768647142244,0.001,3293.8,3293.5,2.27995855]
[1768647150549,0.001,3293.8,3293.5,2.31032138]
[1768647150754,0.001,3293.8,3293.5,2.27995855]
[1768647151539,0.001,3293.8,3293.6,0.002]
[1768647152666,0.001,3293.8,3293.6,2.29550472]
[1768647158640,0.001,3293.8,3293.6,5.33168024]
[1768647159368,0.001,3293.8,3293.6,2.29550472]
[1768647160970,0.001,3293.8,3293.6,3.03817219]
[1768647161175,0.001,3293.8,3293.7,2.29350472]
[1768647165560,0.001,3293.8,3293.6,0.002]
[1768647165960,0.001,3293.8,3293.6,2.29550472]
[1768647173695,0.001,3293.8,3293.6,5.33169265]
[1768647174392,0.001,3293.8,3293.6,2.29550472]
[1768647174894,0.001,3293.8,3293.6,0.002]
[1768647175991,0.001,3293.8,3293.6,3.03817928]
[1768647176563,2.67844247,3294.0,3293.6,5.18109924]
[1768647176888,1.76779933,3294.0,3293.6,5.18109924]
[1768647180596,1.76779933,3294.0,3293.6,2.14491996]
[1768647181594,1.76779933,3294.0,3293.6,5.18108098]
[1768647186895,0.001,3293.7,3293.6,5.18108098]
[1768647187102,1.76779933,3294.0,3293.6,6.00282451]
[1768647187298,1.76779933,3294.0,3293.6,5.18108098]
[1768647194009,1.76779933,3294.0,3293.6,2.14491996]
[1768647198411,0.001,3293.7,3293.6,2.14491996]
[1768647198611,1.76779933,3294.0,3293.6,2.14491996]
[1768647201011,1.76779933,3294.0,3293.6,5.18108791]
[1768647204532,0.91064314,3294.1,3293.7,2.07723783]
[1768647204810,0.001,3294.2,3293.7,2.07723783]
[1768647205111,0.501,3294.4,3293.7,2.07723783]
[1768647205112,1.41158509,3294.4,3293.8,2.07723783]
[1768647205301,0.501,3294.4,3294.1,2.09819886]
[1768647206018,0.001,3294.5,3294.1,2.09819886]
[1768647214559,0.001,3294.5,3294.1,2.61159441]
[1768647217343,0.001,3294.5,3294.1,2.09819886]
[1768647221659,0.001,3294.2,3294.1,2.09819886]
[1768647225863,0.001,3294.2,3294.1,5.11296837]
[1768647226064,0.001,3294.5,3294.1,5.11296837]
[1768647229963,0.001,3294.5,3294.2,2.16864686]
[1768647230267,0.001,3294.5,3294.2,2.6890846]
[1768647241247,0.001,3294.5,3294.2,2.16864686]
[1768647247482,0.001,3294.5,3294.3,2.08574377]
[1768647247656,0.001,3294.8,3294.3,2.08574377]
[1768647248279,0.001,3294.8,3294.4,2.08574377]
[1768647252092,1.578189,3294.8,3294.4,2.08574377]
[1768647254185,1.578189,3294.8,3294.3,2.08574377]
[1768647257191,4.61328335,3294.8,3294.5,0.002]
[1768647258294,1.578189,3294.8,3294.5,0.002]
[1768647258598,4.61328282,3294.8,3294.5,0.002]
[1768647258796,1.56832063,3294.7,3294.5,0.002]
[1768647263605,4.60352889,3294.7,3294.5,0.002]
[1768647265207,1.56014119,3294.6,3294.5,0.002]
[1768647266408,1.56014119,3294.6,3294.1,2.18137303]
[1768647268414,1.56014119,3294.6,3294.1,5.21709537]
[1768647268898,1.56014119,3294.6,3294.1,2.18137303]
[1768647275211,4.59541578,3294.6,3294.1,2.18137303]
[1768647275420,2.008094,3294.5,3294.1,0.002]
[1768647276494,1.54855242,3294.5,3294.1,0.002]
[1768647276701,1.54855242,3294.5,3294.1,2.05507193]
[1768647279521,3.94579888,3294.6,3294.1,2.05507193]
[1768647279720,5.48955125,3294.6,3294.1,2.05507193]
[1768647279923,2.45427666,3294.6,3294.1,2.05507193]
[1768647280726,2.45427666,3294.6,3294.4,0.002]
[1768647281026,0.54894871,3294.5,3294.4,0.002]
[1768647292737,1.54375237,3294.6,3294.4,0.002]
[1768647293120,0.91052429,3294.7,3294.4,0.002]
[1768647298545,0.91052429,3294.7,3294.4,2.09432144]
[1768647301448,0.91052429,3294.7,3294.4,0.002]
[1768647301449,5.47062572,3294.7,3294.4,0.002]
[1768647301756,1.52491676,3294.6,3294.4,0.00050643]
[1768647302052,3.58244743,3294.6,3294.1,0.002]
[1768647302218,2.1289067,3294.5,3294.1,2.09432144]
[1768647310250,2.1289067,3294.5,3294.1,0.002]
[1768647314734,2.1289067,3294.5,3294.1,2.09432144]
[1768647315370,0.001,3294.2,3294.1,2.09432144]
[1768647322375,3.03370956,3294.8,3294.2,2.04097933]
[1768647322669,5.15829406,3294.8,3294.2,2.04097933]
[1768647322836,0.001,3294.8,3294.2,2.04097933]
[1768647323038,3.03609665,3294.8,3294.2,2.04097933]
[1768647323463,3.03609665,3294.8,3294.5,0.0008]
[1768647323658,3.99656302,3294.8,3294.5,0.0008]
[1768647324371,6.11874829,3294.8,3294.5,0.0008]
[1768647327536,2.12218527,3294.7,3294.5,0.0008]
[1768647332267,5.15742351,3294.7,3294.5,0.0008]
[1768647336584,3.03523824,3294.7,3294.5,0.0008]
[1768647339697,3.99658406,3294.8,3294.5,2.06141359]
[1768647341595,7.03170175,3294.8,3294.1,0.002]
[1768647341894,9.18232615,3294.8,3294.2,2.06061359]
[1768647342097,6.14720846,3294.8,3294.2,2.06061359]
[1768647343980,6.14720846,3294.8,3294.5,0.0008]
[1768647344179,0.96840238,3294.7,3294.5,0.0008]
[1768647349077,4.00360408,3294.7,3294.5,0.0008]
[1768647368993,3.0352017,3294.7,3294.5,0.0008]
[1768647372918,5.18673947,3294.8,3294.5,0.0008]
[1768647378090,3.03611507,3294.8,3294.5,0.0008]
[1768647379318,0.001,3294.8,3294.5,2.11004883]
[1768647398211,0.001,3294.8,3294.5,0.0008]
[1768647406039,0.001,3294.8,3294.6,2.43869307]
[1768647406939,0.001,3294.8,3294.5,0.0008]
[1768647408241,0.001,3294.8,3294.5,2.43949307]
[1768647412529,0.001,3294.8,3294.5,0.0008]
[1768647412955,2.36573733,3294.8,3294.5,0.0008]
[1768647417963,5.40085988,3294.8,3294.5,0.0008]
[1768647438679,2.36573733,3294.8,3294.5,0.0008]
[1768647438974,0.001,3294.8,3294.5,0.0008]
[1768647440678,3.03610286,3294.8,3294.5,0.0008]
[1768647445283,0.001,3294.8,3294.5,0.0008]
[1768647523566,0.001,3294.8,3294.5,2.64203752]
[1768647527894,0.91136956,3294.8,3294.5,2.64203752]
[1768647535496,6.56986704,3294.8,3294.5,0.0008]
[1768647535668,0.91136956,3294.8,3294.5,0.0008]
[1768647543556,3.9464624,3294.8,3294.5,0.0008]
[1768647544149,0.91136956,3294.8,3294.5,0.0008]
[1768647545051,3.94645571,3294.8,3294.5,0.0008]
[1768647546751,0.91136956,3294.8,3294.5,0.0008]
[1768647548472,3.94646548,3294.8,3294.5,0.0008]
[1768647550423,6.56985475,3294.8,3294.5,0.0008]
[1768647561356,5.65948519,3294.8,3294.5,0.0008]
[1768647561554,0.91036956,3294.7,3294.5,0.0008]
[1768647562053,3.94556524,3294.7,3294.5,0.0008]
[1768647562829,3.94556524,3294.7,3294.5,2.7424522]
[1768647563169,3.94556524,3294.7,3294.5,0.0008]
[1768647563770,6.59937063,3294.7,3294.5,0.0008]
[1768647564001,3.56417495,3294.7,3294.5,0.0008]
[1768647564893,0.91036956,3294.7,3294.5,0.0008]
[1768647570978,3.94556554,3294.7,3294.5,0.0008]
[1768647577018,3.94556554,3294.7,3294.5,2.77342778]
[1768647577388,3.94556554,3294.7,3294.5,0.0008]
[1768647582015,0.91036956,3294.7,3294.5,0.0008]
[1768647587161,5.79761687,3294.8,3294.5,0.0008]
[1768647587664,6.70798643,3294.8,3294.5,0.0008]
[1768647602783,2.65278703,3294.7,3294.5,0.0008]
[1768647602996,2.65278703,3294.7,3294.1,0.002]
[1768647603290,2.65278703,3294.5,3294.1,0.002]
[1768647603578,5.68819182,3294.5,3294.1,0.002]
[1768647603946,6.59866084,3294.5,3294.1,0.002]
[1768647605293,6.59966084,3294.5,3294.4,0.002]
[1768647605477,7.56315481,3294.5,3294.1,0.002]
[1768647605783,2.65278703,3294.4,3294.1,0.002]
[1768647607798,5.68824571,3294.4,3294.1,0.002]
[1768647608285,3.03545868,3294.4,3294.1,0.002]
[1768647614806,3.03545868,3294.4,3293.9,0.501]
[1768647614807,2.65278703,3294.3,3293.6,2.65190603]
[1768647614975,3.3127585,3294.3,3293.8,0.501]
[1768647615196,2.65278703,3294.2,3293.6,2.65190603]
[1768647615381,2.65278703,3294.2,3293.7,0.501]
[1768647615586,2.65278703,3294.1,3293.7,0.501]
[1768647617115,5.68855618,3294.1,3293.7,0.501]
[1768647617324,5.68855618,3294.1,3293.8,0.002]
[1768647619323,5.68855618,3294.1,3293.6,2.65190603]
[1768647619324,2.65278703,3294.0,3293.6,0.002]
[1768647619926,2.77420169,3293.9,3293.7,0.501]
[1768647621825,2.77420169,3293.9,3293.6,0.002]
[1768647622128,2.77420169,3293.9,3293.7,0.501]
[1768647625837,5.81013479,3293.9,3293.6,0.002]
[1768647626042,5.81013479,3293.9,3293.7,0.501]
[1768647628320,2.77420169,3293.9,3293.7,0.501]
[1768647629444,0.12141466,3293.9,3293.7,0.501]
[1768647633369,0.12141466,3293.9,3293.6,2.74047289]
[1768647633575,0.12141466,3293.9,3293.7,0.501]
[1768647636762,0.12141466,3293.9,3293.7,3.14304897]
[1768647637277,0.12141466,3293.9,3293.7,0.501]
[1768647643195,2.58325983,3293.9,3293.8,0.501]
[1768647643990,0.12141466,3293.9,3293.8,0.501]
[1768647647504,0.12141466,3293.9,3293.8,0.451]
[1768647661749,0.12141466,3293.9,3293.7,0.501]
[1768647673279,0.12141466,3293.9,3293.6,0.002]
[1768647673583,0.12141466,3293.9,3293.7,0.501]
[1768647677097,3.15733145,3293.9,3293.7,0.501]
[1768647680581,0.12141466,3293.9,3293.7,0.501]
[1768647688565,0.12141466,3293.9,3293.7,2.67326716]
[1768647689080,0.0008,3294.4,3293.8,2.13621322]
[1768647689278,0.0008,3294.4,3294.0,2.13621322]
[1768647689481,0.91048284,3294.7,3294.3,2.12681206]
[1768647689658,0.91048284,3294.7,3294.1,0.501]
[1768647689659,0.001,3294.8,3294.2,2.12581206]
[1768647690086,3.03611076,3294.8,3294.2,2.12581206]
[1768647695275,3.03611076,3294.8,3294.3,2.078122]
[1768647696161,5.14198036,3294.8,3294.3,2.078122]
[1768647697813,0.001,3294.5,3294.3,2.078122]
[1768647698688,0.001,3294.5,3294.2,0.56633397]
[1768647698857,2.1068696,3294.5,3294.3,0.501]
[1768647715623,2.1068696,3294.5,3294.0,0.00080008]
[1768647715624,2.17454517,3294.4,3294.0,0.00080008]
[1768647715789,2.17454517,3294.4,3294.1,0.501]
[1768647716923,2.17454517,3294.4,3294.0,0.50180008]
[1768647718341,2.17454517,3294.3,3294.0,0.00080008]
[1768647718516,2.17454517,3294.3,3294.0,0.50180008]
[1768647718828,2.02276717,3294.3,3294.0,0.50180008]
[1768647721001,2.02276717,3294.3,3294.1,0.002]
[1768647731241,0.50592218,3294.3,3294.1,0.002]
[1768647731546,2.17454517,3294.2,3294.0,0.00080008]
[1768647732952,2.17454517,3294.2,3294.0,0.00280008]
[1768647744756,2.12744478,3294.1,3294.0,0.00280008]
[1768647757183,2.12744478,3294.1,3293.6,3.0381726]
[1768647757383,1.98218864,3294.0,3293.6,0.503]
[1768647759988,1.98218864,3293.9,3293.6,0.503]
[1768647760555,1.98218864,3294.1,3293.6,0.503]
[1768647760889,1.98218864,3294.0,3293.5,0.0008]
[1768647761087,1.98218864,3294.0,3293.3,0.002]
[1768647761263,1.98218864,3293.8,3293.3,0.002]
[1768647762691,1.98218864,3293.6,3293.3,0.002]
[1768647764488,5.01838361,3293.6,3293.3,0.002]
[1768647765265,5.82382462,3293.6,3293.3,0.002]
[1768647768273,2.78762965,3293.6,3293.3,0.002]
[1768647768480,1.98218864,3293.6,3293.3,0.002]
[1768647772104,5.01838224,3293.6,3293.3,0.002]
[1768647772309,1.98218864,3293.6,3293.3,0.002]
[1768647775487,3.03612901,3293.7,3293.3,1.94040158]
[1768647775688,0.0008,3293.9,3293.3,1.94040158]
[1768647777772,0.0008,3293.9,3293.4,1.93483164]
[1768647778001,0.0008,3293.9,3293.6,1.93483164]
[1768647783282,0.0008,3293.9,3293.7,1.92625945]
[1768647785012,2.05202688,3294.4,3293.9,1.92296683]
[1768647785013,0.00080008,3294.4,3293.9,1.92296683]
[1768647785321,0.00080008,3294.4,3294.0,1.92296683]
[1768647793405,0.001,3294.1,3294.0,1.92296683]
[1768647794119,0.00080008,3294.4,3294.0,1.92296683]
[1768647794326,0.00080008,3294.4,3294.0,2.16536351]
[1768647794906,0.00080008,3294.4,3294.1,1.90759803]
[1768647795455,0.00080008,3294.4,3294.2,1.90759803]
[1768647797518,0.00080008,3294.4,3294.3,1.90473164]
[1768647797914,0.001,3294.5,3294.3,1.90473164]
[1768647806137,0.001,3294.5,3294.3,4.94025042]
[1768647806321,0.001,3294.5,3294.3,6.23884696]
[1768647812559,1.93967518,3294.7,3294.3,6.23884696]
[1768647815359,0.001,3294.8,3294.4,1.97485764]
[1768647815725,1.93290366,3294.8,3294.4,1.97485764]
[1768647816035,1.93290366,3294.8,3294.0,0.24319684]
[1768647816036,1.93190366,3294.7,3294.0,0.24319684]
[1768647816223,1.93190366,3294.3,3294.0,0.24319684]
[1768647816428,1.93190366,3294.3,3294.0,0.74419684]
[1768647817363,1.93190366,3294.3,3294.0,3.78000151]
[1768647818957,1.93190366,3294.3,3293.7,3.03608694]
[1768647819131,1.93190366,3294.3,3293.8,0.501]
[1768647819566,1.93190366,3294.3,3293.7,3.03608694]
[1768647819753,1.93190366,3294.3,3293.7,3.53708694]
[1768647821965,1.93190366,3294.3,3293.7,3.03608694]
[1768647822131,1.93190366,3294.3,3293.7,3.53708694]
[1768647823731,1.93190366,3294.3,3293.7,4.39197894]
[1768647823929,1.93190366,3294.3,3293.7,9.40293579]
[1768647825273,1.93190366,3294.3,3293.7,8.90193579]
[1768647825453,1.93190366,3294.3,3293.8,0.501]
[1768647826070,1.93190366,3294.3,3293.9,3.03591487]
[1768647827378,0.00180016,3294.4,3293.9,3.03591487]
[1768647827379,0.00180016,3294.4,3293.9,5.01077251]
[1768647827582,0.00180016,3294.4,3294.0,0.85477703]
[1768647827959,1.93370382,3294.4,3294.0,0.85477703]
[1768647828140,1.93370382,3294.4,3293.9,5.01077251]
[1768647828342,1.93370382,3294.4,3294.1,0.002]
[1768647840399,0.00180016,3294.4,3294.1,2.17606326]
[1768647840548,0.001,3294.8,3294.2,2.17406326]
[1768647840743,0.001,3294.8,3294.3,2.17406326]
[1768647841561,2.17441482,3294.8,3294.3,2.17406326]
[1768647843085,2.17341482,3294.7,3294.3,2.17406326]
[1768647843377,2.17341482,3294.7,3294.2,2.17406326]
[1768647843552,2.17341482,3294.7,3294.1,5.21178858]
[1768647843756,2.17341482,3294.7,3294.1,6.08673834]
[1768647845087,5.20860887,3294.7,3294.1,6.08673834]
[1768647845387,5.20860887,3294.7,3294.1,3.05101302]
[1768647846287,2.17341482,3294.6,3294.1,3.05101302]
[1768647847195,2.17341482,3294.6,3294.1,2.17606326]
[1768647851897,2.17341482,3294.6,3294.4,0.002]
[1768647854972,3.03521773,3294.7,3294.4,0.002]
[1768647855174,5.20863255,3294.7,3294.4,0.002]
[1768647863911,3.03521773,3294.7,3294.4,0.002]
[1768647865769,3.03521773,3294.7,3294.3,2.61780053]
[1768647868279,2.686725,3294.8,3294.3,2.61780053]
[1768647868788,2.686725,3294.8,3294.1,2.72580053]
[1768647871793,5.7218703,3294.8,3294.2,2.71059897]
[1768647873013,2.84039028,3294.7,3294.2,2.71059897]
[1768647873506,2.84139028,3294.8,3294.2,2.71059897]
[1768647875010,5.87556798,3294.7,3294.4,0.002]
[1768647875210,0.001,3294.5,3294.4,0.002]
[1768647890593,0.001,3294.5,3294.4,2.71259897]
[1768647894710,0.001,3294.5,3294.4,0.002]
[1768647913456,3.38588898,3294.5,3294.1,0.002]
[1768647913628,2.80214707,3294.5,3294.2,0.501]
[1768647914031,2.80214707,3294.5,3294.1,0.002]
[1768647914227,5.83755156,3294.5,3294.1,0.002]
[1768647914533,2.80114707,3294.4,3294.1,0.002]
[1768647917465,0.001,3294.5,3294.1,2.93573165]
[1768647919960,0.001,3294.5,3294.2,2.93373165]
[1768647925728,0.001,3294.5,3294.1,0.002]
[1768647925933,3.1604062,3294.5,3294.1,0.002]
[1768647927365,3.1604062,3294.5,3294.1,0.503]
[1768647928038,6.19577365,3294.5,3294.1,0.503]
[1768647928361,3.1594062,3294.4,3294.1,0.503]
[1768647930263,0.001,3294.5,3294.1,3.59882321]
[1768647932969,0.001,3294.5,3294.4,0.002]
[1768647945782,3.0361142,3294.8,3294.5,3.14910427]
[1768647945948,0.60826325,3294.8,3294.5,3.14910427]
[1768647946277,3.03608653,3294.8,3294.5,3.14910427]
[1768647948482,0.001,3294.8,3294.5,3.14910427]
[1768647948777,0.9104856,3294.7,3294.5,3.14910427]
[1768647949159,0.9104856,3294.7,3294.4,0.002]
[1768647950277,6.87802589,3294.7,3294.4,0.002]
[1768647950455,2.93233545,3294.6,3294.4,0.002]
[1768647951764,7.1823948,3294.7,3294.4,0.002]
[1768647953381,4.14718996,3294.7,3294.4,0.002]
[1768647953688,3.94567048,3294.7,3294.4,0.002]
[1768647969103,3.23670436,3294.5,3294.2,0.501]
[1768647969280,3.23670436,3294.5,3294.0,0.00080024]
[1768647971505,3.23670436,3294.4,3294.0,0.00080024]
[1768647972375,3.23670436,3294.3,3293.8,0.002]
[1768647972977,3.23670436,3294.3,3293.5,3.70006322]
[1768647972978,3.23670436,3294.2,3293.5,3.70006322]
[1768647973387,6.2724349,3294.1,3293.5,3.19906322]
[1768647974108,10.69486205,3294.1,3293.5,3.19906322]
[1768647974407,6.2724349,3294.1,3293.5,3.19906322]
[1768647978310,6.2724349,3294.1,3293.8,0.002]
[1768647986517,3.13002169,3294.0,3293.5,0.00280008]
[1768647986722,3.13002169,3293.9,3293.5,0.00280008]
[1768647988825,3.03600704,3293.8,3293.5,0.00280008]
[1768647990215,6.16702873,3293.8,3293.5,0.00280008]
[1768647996216,3.20623816,3293.6,3293.0,0.0028]
[1768647999749,3.20623816,3293.4,3293.0,0.0028]
[1768648005043,0.001,3293.5,3293.0,2.93662736]
[1768648006249,3.03730193,3293.5,3293.0,2.93662736]
[1768648007344,3.20623816,3293.4,3293.0,0.0028]
[1768648017499,3.20623816,3293.4,3293.0,3.05751291]
[1768648019700,3.20623816,3293.4,3293.0,6.09425335]
[1768648020483,0.91178413,3293.5,3293.0,6.09425335]
[1768648020670,0.91178413,3293.5,3293.0,6.82054287]
[1768648023755,0.91178413,3293.5,3293.0,6.09425335]
[1768648024395,0.001,3293.2,3293.0,6.09425335]
[1768648033812,0.001,3293.2,3293.0,3.05751291]
[1768648034021,0.001,3293.2,3293.0,0.0028]